[Event "36th European Club Cup 2021"]
[Site "Struga"]
[Date "2021.09.23"]
[Round "6.47"]
[White "Haag, Gregor"]
[Black "Arman, Deniz"]
[Result "1/2-1/2"]
[ECO "E60"]
[WhiteElo "2370"]
[BlackElo "2336"]
[Annotator "NA"]
[PlyCount "94"]
[EventDate "2021.09.18"]
[EventType "team-tourn"]
[EventCountry "MKD"]
[SourceTitle "playchess.com"]
[Source "ChessBase"]
[SourceQuality "1"]
[TimeControl "40/5400+30:1800+30"]

1. d4 {[%emt 0:00:04]} Nf6 {[%emt 0:00:13]} 2. c4 {[%emt 0:00:06]} g6 {[%emt 0:
00:14]} 3. h4 {[%emt 0:00:46]} c5 {[%emt 0:05:47]} 4. d5 {[%emt 0:00:22]} b5 {
[%emt 0:00:41]} 5. cxb5 {[%emt 0:00:21]} a6 {[%emt 0:00:18]} 6. e3 {[%emt 0:02:
43]} Bg7 {[%emt 0:01:12]} 7. Nc3 {[%emt 0:00:23]} O-O {[%emt 0:05:43]} 8. a4 {
[%emt 0:06:46]} Bb7 {[%emt 0:16:14]} 9. h5 {[%emt 0:14:59]} Nxh5 {[%emt 0:04:
11]} 10. g4 {[%emt 0:15:28]} Nf6 {[%emt 0:01:33]} 11. e4 {[%emt 0:04:46]} d6 {
[%emt 0:31:16]} 12. g5 {[%emt 0:05:50]} Nfd7 {[%emt 0:00:12]} 13. Qg4 {[%emt 0:
03:55]} Re8 {[%emt 0:00:05]} 14. Qh3 {[%emt 0:14:25]} Nf8 {[%emt 0:00:59]} 15.
Bc4 {[%emt 0:00:05]} Nbd7 {[%emt 0:03:42]} 16. Ra3 {[%emt 0:05:39]} axb5 {
[%emt 0:01:01]} 17. Bxb5 {[%emt 0:01:40]} e6 {[%emt 0:00:12]} 18. dxe6 {
[%emt 0:13:40]} Rxe6 {[%emt 0:00:36]} 19. Nge2 {[%emt 0:00:15]} Rxe4 {[%emt 0:
08:16]} 20. Nxe4 {[%emt 0:02:19]} Bxe4 {[%emt 0:00:05]} 21. O-O {[%emt 0:01:11]
} Ne6 {[%emt 0:02:58]} 22. Qg3 {[%emt 0:02:04]} Be5 {[%emt 0:13:26]} 23. f4 {
[%emt 0:00:05]} Bh8 {[%emt 0:00:25]} 24. Rd1 {[%emt 0:01:15]} Ndf8 {[%emt 0:01:
06]} 25. Re3 {[%emt 0:02:26]} Bb7 {[%emt 0:00:10]} 26. f5 {[%emt 0:00:45]} Nxg5
{[%emt 0:02:05]} 27. Rxd6 {[%emt 0:00:14]} Qb8 {[%emt 0:00:10]} 28. Re8 {
[%emt 0:00:50]} Nf3+ {[%emt 0:00:26]} 29. Kf2 {[%emt 0:00:28]} Be5 {[%emt 0:00:
56]} 30. Qxe5 {[%emt 0:00:49]} Nxe5 {[%emt 0:00:07]} 31. Rxb8 {[%emt 0:00:05]}
Rxb8 {[%emt 0:00:02]} 32. Bf4 {[%emt 0:00:38]} f6 {[%emt 0:00:33]} 33. Rxf6 {
[%emt 0:00:49]} Ng4+ {[%emt 0:00:10]} 34. Ke1 {[%emt 0:00:17]} Nxf6 {[%emt 0:
00:09]} 35. Bxb8 {[%emt 0:00:03]} gxf5 {[%emt 0:01:11]} 36. Nf4 {[%emt 0:00:37]
} Kf7 {[%emt 0:00:14]} 37. a5 {[%emt 0:00:37]} Ke7 {[%emt 0:00:39]} 38. a6 {
[%emt 0:00:28]} Ba8 {[%emt 0:00:45]} 39. Bd3 {[%emt 0:00:47]} Kd7 {[%emt 0:01:
21]} 40. Bxf5+ {[%emt 0:00:00]} Kc6 {[%emt 0:00:00]} 41. Nd3 {[%emt 0:15:18]}
Kb6 {[%emt 0:12:34]} 42. Bc8 {[%emt 0:02:46]} N8d7 {[%emt 0:01:54]} 43. Bh2 {
[%emt 0:02:33]} Bc6 {[%emt 0:06:47]} 44. Bg1 {[%emt 0:06:33]} Kc7 {[%emt 0:02:
10]} 45. Bxd7 {[%emt 0:01:26]} Nxd7 {[%emt 0:00:05]} 46. Nxc5 {[%emt 0:01:37]}
Nxc5 {[%emt 0:00:08]} 47. Bxc5 {[%emt 0:00:03]} Bb5 {[%emt 0:00:15]} 1/2-1/2

[Event "36th European Club Cup 2021"]
[Site "Struga"]
[Date "2021.09.23"]
[Round "6.48"]
[White "Thorn, Eric"]
[Black "Heinz, Timothee"]
[Result "1/2-1/2"]
[ECO "D41"]
[WhiteElo "2292"]
[BlackElo "2394"]
[Annotator "NA"]
[PlyCount "59"]
[EventDate "2021.09.18"]
[EventType "team-tourn"]
[EventCountry "MKD"]
[SourceTitle "playchess.com"]
[Source "ChessBase"]
[SourceQuality "1"]
[TimeControl "40/5400+30:1800+30"]

1. d4 {[%emt 0:00:07]} d5 {[%emt 0:00:15]} 2. c4 {[%emt 0:00:16]} e6 {[%emt 0:
00:05]} 3. Nc3 {[%emt 0:00:10]} Nf6 {[%emt 0:00:08]} 4. Nf3 {[%emt 0:00:06]} c5
{[%emt 0:00:16]} 5. cxd5 {[%emt 0:00:13]} Nxd5 {[%emt 0:00:07]} 6. g3 {[%emt 0:
00:10]} cxd4 {[%emt 0:00:29]} 7. Nxd5 {[%emt 0:00:08]} Qxd5 {[%emt 0:00:04]} 8.
Qxd4 {[%emt 0:00:12]} Qb5 {[%emt 0:00:10]} 9. e4 {[%emt 0:00:16]} Qb4+ {
[%emt 0:00:06]} 10. Bd2 {[%emt 1:33:52]} Nc6 {[%emt 0:00:49]} 11. Qxb4 {
[%emt 0:00:00]} Bxb4 {[%emt 0:00:05]} 12. Bb5 {[%emt 0:00:00]} Bd7 {[%emt 0:01:
54]} 13. Bxc6 {[%emt 0:00:00]} Bxd2+ {[%emt 0:00:05]} 14. Kxd2 {[%emt 0:00:00]}
Bxc6 {[%emt 0:00:06]} 15. Ke3 {[%emt 0:00:00]} Ke7 {[%emt 0:08:25]} 16. Rhc1 {
[%emt 0:00:00]} Rhc8 {[%emt 0:00:25]} 17. Rc3 {[%emt 0:00:00]} f6 {[%emt 0:02:
25]} 18. Nd4 {[%emt 0:00:00]} Bd7 {[%emt 0:02:07]} 19. Rac1 {[%emt 0:00:00]} e5
{[%emt 0:06:44]} 20. Nf5+ {[%emt 0:00:00]} Bxf5 {[%emt 0:00:34]} 21. exf5 {
[%emt 0:00:00]} Rxc3+ {[%emt 0:00:53]} 22. Rxc3 {[%emt 0:00:00]} Kd6 {[%emt 0:
00:07]} 23. Rd3+ {[%emt 0:00:00]} Kc6 {[%emt 0:01:35]} 24. Rc3+ {[%emt 0:00:00]
} Kd6 {[%emt 0:00:05]} 25. g4 {[%emt 0:00:00]} a5 {[%emt 0:07:25]} 26. Rd3+ {
[%emt 0:00:00]} Kc6 {[%emt 0:01:17]} 27. Rc3+ {[%emt 0:00:00]} Kd6 {[%emt 0:00:
05]} 28. Rd3+ {[%emt 0:00:00]} Kc6 {[%emt 0:00:45]} 29. Rc3+ {[%emt 0:00:00]}
Kd6 {[%emt 0:00:58]} 30. Ke4 {[%emt 0:00:00]} 1/2-1/2

[Event "36th European Club Cup 2021"]
[Site "Struga"]
[Date "2021.09.23"]
[Round "6.49"]
[White "Nevednichy, Vladislav"]
[Black "Gukesh D"]
[Result "0-1"]
[ECO "B31"]
[WhiteElo "2498"]
[BlackElo "2599"]
[Annotator "ChessBase"]
[PlyCount "72"]
[EventDate "2021.09.18"]
[EventType "team-tourn"]
[EventCountry "MKD"]
[SourceTitle "playchess.com"]
[Source "ChessBase"]
[SourceQuality "1"]
[TimeControl "40/5400+30:1800+30"]

1. e4 {[%emt 0:00:06]} c5 {[%emt 0:01:25]} 2. Nf3 {[%emt 0:00:16]} Nc6 {
[%emt 0:01:27]} 3. Bb5 {[%emt 0:00:08]} g6 {[%emt 0:00:59]} 4. Bxc6 {[%emt 0:
00:06]} dxc6 {[%emt 0:00:06]} 5. d3 {[%emt 0:00:05]} Bg7 {[%emt 0:00:06]} 6.
O-O {[%emt 0:00:38]} Nf6 {[%emt 0:02:09]} 7. a4 {[%emt 0:00:27]} a5 {[%emt 0:
01:34]} 8. h3 {[%emt 0:07:06]} O-O {[%emt 0:00:10]} 9. Na3 {[%emt 0:00:52]} Nd7
{[%emt 0:00:09]} 10. c3 {[%emt 0:11:54]} b6 {[%emt 0:16:19]} 11. Bg5 {[%emt 0:
07:50]} h6 {[%emt 0:10:33]} 12. Be3 {[%emt 0:07:13]} Ba6 {[%emt 0:02:05]} 13.
Qd2 {[%emt 0:00:46]} Kh7 {[%emt 0:00:38]} 14. Rfe1 {[%emt 0:09:34]} e5 {
[%emt 0:05:25]} 15. Rad1 {[%emt 0:01:15]} f5 {[%emt 0:10:44]} 16. exf5 {
[%emt 0:03:58]} gxf5 {[%emt 0:00:57]} 17. d4 {[%emt 0:01:03]} cxd4 {[%emt 0:08:
11]} 18. cxd4 {[%emt 0:00:05]} e4 {[%emt 0:00:14]} 19. Ne5 {[%emt 0:03:12]}
Nxe5 {[%emt 0:02:51]} 20. dxe5 {[%emt 0:00:04]} Bxe5 {[%emt 0:01:04]} 21. Qc1 {
[%emt 0:17:36]} Qc7 {[%emt 0:12:53]} 22. Nc4 {[%emt 0:02:42]} Bxc4 {[%emt 0:00:
10]} 23. Qxc4 {[%emt 0:00:02]} Rae8 {[%emt 0:01:03]} 24. Rd2 {[%emt 0:03:58]}
Re7 {[%emt 0:02:04]} 25. Red1 {[%emt 0:00:51]} Rg8 {[%emt 0:01:48]} 26. Kf1 {
[%emt 0:00:26]} Rg6 {[%emt 0:02:19]} 27. Qb3 {[%emt 0:11:07]} f4 {[%emt 0:02:
54]} 28. Bxb6 {[%emt 0:01:17]} Qb7 {[%emt 0:00:16]} 29. Qc2 {[%emt 0:03:43]} f3
{[%emt 0:04:24]} 30. g4 {[%emt 0:01:32]} Qa6+ {[%emt 0:00:05]} 31. Kg1 {
[%emt 0:00:56]} Qxb6 {[%emt 0:00:10]} 32. Rd7 {[%emt 0:01:05]} Qb4 {[%emt 0:00:
13]} 33. Qd2 {[%emt 0:00:54]} Rgg7 {[%emt 0:01:13]} 34. Rxe7 {[%emt 0:01:37]}
Rxe7 {[%emt 0:00:42]} 35. Qd8 {[%emt 0:00:19]} Bg7 {[%emt 0:00:39]} 36. Qc8 {
[%emt 0:00:08]} Qc5 {[%emt 0:01:32]} 0-1

[Event "36th European Club Cup 2021"]
[Site "Struga"]
[Date "2021.09.23"]
[Round "6.50"]
[White "Dudin, Gleb"]
[Black "Nikolovski, Nikola"]
[Result "1-0"]
[ECO "A96"]
[WhiteElo "2434"]
[BlackElo "2409"]
[Annotator "NA"]
[PlyCount "67"]
[EventDate "2021.09.18"]
[EventType "team-tourn"]
[EventCountry "MKD"]
[SourceTitle "playchess.com"]
[Source "ChessBase"]
[SourceQuality "1"]
[TimeControl "40/5400+30:1800+30"]

1. d4 {[%emt 0:00:26]} e6 {[%emt 0:00:29]} 2. c4 {[%emt 0:00:10]} f5 {[%emt 0:
00:08]} 3. g3 {[%emt 0:00:07]} Nf6 {[%emt 0:00:21]} 4. Bg2 {[%emt 0:00:08]} Be7
{[%emt 0:01:01]} 5. Nf3 {[%emt 0:00:08]} O-O {[%emt 0:00:19]} 6. O-O {[%emt 0:
00:05]} d6 {[%emt 0:00:13]} 7. b3 {[%emt 0:00:07]} Ne4 {[%emt 0:01:20]} 8. Bb2
{[%emt 0:00:25]} Bf6 {[%emt 0:00:13]} 9. Nbd2 {[%emt 0:00:39]} Nc6 {[%emt 0:00:
32]} 10. Ne1 {[%emt 0:02:50]} Nc5 {[%emt 0:01:35]} 11. e3 {[%emt 0:02:19]} a5 {
[%emt 0:05:34]} 12. a3 {[%emt 0:04:02]} Nd7 {[%emt 0:02:11]} 13. f4 {[%emt 0:
08:30]} e5 {[%emt 0:15:46]} 14. fxe5 {[%emt 0:21:13]} dxe5 {[%emt 0:01:26]} 15.
d5 {[%emt 0:01:54]} Ne7 {[%emt 0:01:52]} 16. e4 {[%emt 0:00:11]} f4 {[%emt 0:
05:56]} 17. Nd3 {[%emt 0:05:02]} fxg3 {[%emt 0:16:04]} 18. hxg3 {[%emt 0:02:59]
} b6 {[%emt 0:00:15]} 19. Qh5 {[%emt 0:15:56]} Ng6 {[%emt 0:09:45]} 20. Nf3 {
[%emt 0:03:11]} Qe7 {[%emt 0:03:24]} 21. b4 {[%emt 0:00:32]} Nh8 {[%emt 0:07:
57]} 22. Nfxe5 {[%emt 0:16:06]} g6 {[%emt 0:05:17]} 23. Nxd7 {[%emt 0:00:06]}
gxh5 {[%emt 0:00:08]} 24. Nxf6+ {[%emt 0:00:05]} Rxf6 {[%emt 0:00:11]} 25. Bxf6
{[%emt 0:00:08]} Qe8 {[%emt 0:01:02]} 26. b5 {[%emt 0:06:31]} Bg4 {[%emt 0:00:
24]} 27. e5 {[%emt 0:05:32]} Nf7 {[%emt 0:13:43]} 28. Rae1 {[%emt 0:00:33]} Ra7
{[%emt 0:00:38]} 29. d6 {[%emt 0:01:47]} cxd6 {[%emt 0:00:46]} 30. Bd5 {
[%emt 0:00:17]} h6 {[%emt 0:04:49]} 31. exd6 {[%emt 0:00:56]} Qb8 {[%emt 0:01:
07]} 32. Be7 {[%emt 0:00:06]} h4 {[%emt 0:01:25]} 33. Rxf7 {[%emt 0:00:10]}
Rxe7 {[%emt 0:00:23]} 34. Rfxe7+ {[%emt 0:00:07]} 1-0

[Event "36th European Club Cup 2021"]
[Site "Struga"]
[Date "2021.09.23"]
[Round "6.51"]
[White "Risteski, Emil"]
[Black "Boskovic, Drasko"]
[Result "0-1"]
[ECO "B30"]
[WhiteElo "2320"]
[BlackElo "2457"]
[Annotator "ChessBase"]
[PlyCount "96"]
[EventDate "2021.09.18"]
[EventType "team-tourn"]
[EventCountry "MKD"]
[SourceTitle "playchess.com"]
[Source "ChessBase"]
[SourceQuality "1"]
[TimeControl "40/5400+30:1800+30"]

1. e4 {[%emt 0:00:33]} c5 {[%emt 0:00:06]} 2. Nf3 {[%emt 0:00:15]} Nc6 {
[%emt 0:00:36]} 3. Bb5 {[%emt 0:00:09]} e5 {[%emt 1:31:18]} 4. O-O {[%emt 0:00:
22]} Bd6 {[%emt 0:00:00]} 5. c3 {[%emt 0:00:08]} a6 {[%emt 0:00:00]} 6. Ba4 {
[%emt 0:00:32]} b5 {[%emt 0:00:00]} 7. Bb3 {[%emt 0:00:05]} c4 {[%emt 0:00:00]}
8. Bc2 {[%emt 0:00:10]} Nf6 {[%emt 0:00:00]} 9. a4 {[%emt 0:03:23]} b4 {
[%emt 0:00:00]} 10. Qe2 {[%emt 0:00:06]} O-O {[%emt 0:00:00]} 11. d4 {[%emt 0:
08:31]} cxd3 {[%emt 0:00:00]} 12. Bxd3 {[%emt 0:04:04]} h6 {[%emt 0:00:00]} 13.
Rd1 {[%emt 0:14:55]} Bc5 {[%emt 0:00:00]} 14. Be3 {[%emt 0:09:38]} Qb6 {
[%emt 0:00:00]} 15. Bxc5 {[%emt 0:00:41]} Qxc5 {[%emt 0:00:00]} 16. cxb4 {
[%emt 0:01:19]} Nxb4 {[%emt 0:00:00]} 17. Nc3 {[%emt 0:00:57]} Bb7 {[%emt 0:00:
00]} 18. Bc4 {[%emt 0:01:38]} Rac8 {[%emt 0:00:00]} 19. b3 {[%emt 0:01:25]}
Rfe8 {[%emt 0:00:00]} 20. Ne1 {[%emt 0:06:27]} Nc6 {[%emt 0:00:00]} 21. Nf3 {
[%emt 0:01:28]} Nd4 {[%emt 0:00:00]} 22. Qa2 {[%emt 0:02:57]} Nxf3+ {[%emt 0:
00:00]} 23. gxf3 {[%emt 0:00:05]} Red8 {[%emt 0:00:00]} 24. Qd2 {[%emt 0:02:00]
} Rc6 {[%emt 0:00:00]} 25. Kh1 {[%emt 0:01:40]} Nh5 {[%emt 0:00:00]} 26. Qe3 {
[%emt 0:04:19]} Nf4 {[%emt 0:00:05]} 27. Nd5 {[%emt 0:00:53]} Nxd5 {[%emt 0:03:
33]} 28. Bxd5 {[%emt 0:01:15]} Qxe3 {[%emt 0:00:09]} 29. fxe3 {[%emt 0:00:06]}
Rb6 {[%emt 0:00:12]} 30. a5 {[%emt 0:01:24]} Rb4 {[%emt 0:00:16]} 31. Bc4 {
[%emt 0:00:16]} Kf8 {[%emt 0:04:06]} 32. Rd6 {[%emt 0:07:20]} Ke7 {[%emt 0:00:
09]} 33. Rad1 {[%emt 0:00:06]} Bc6 {[%emt 0:01:47]} 34. Kg2 {[%emt 0:02:42]}
Rdb8 {[%emt 0:04:41]} 35. Kg3 {[%emt 0:03:16]} R8b7 {[%emt 0:00:20]} 36. Kg4 {
[%emt 0:10:31]} Bb5 {[%emt 0:00:25]} 37. Bxb5 {[%emt 0:00:16]} R4xb5 {[%emt 0:
00:06]} 38. Rxa6 {[%emt 0:00:04]} Rxb3 {[%emt 0:00:08]} 39. Ra8 {[%emt 0:03:55]
} Rxe3 {[%emt 0:01:27]} 40. Rd5 {[%emt 0:00:00]} d6 {[%emt 0:00:00]} 41. Rc8 {
[%emt 0:08:05]} g6 {[%emt 0:13:37]} 42. a6 {[%emt 0:01:20]} Rbb3 {[%emt 0:06:
10]} 43. Kg3 {[%emt 0:06:24]} Rxf3+ {[%emt 0:00:23]} 44. Kg2 {[%emt 0:00:03]}
Rfc3 {[%emt 0:01:08]} 45. Rxc3 {[%emt 0:01:24]} Rxc3 {[%emt 0:00:08]} 46. Ra5 {
[%emt 0:00:00]} Rc8 {[%emt 0:00:10]} 47. a7 {[%emt 0:00:02]} Ra8 {[%emt 0:00:
06]} 48. Kf3 {[%emt 0:00:12]} Kd7 {[%emt 0:00:11]} 0-1

[Event "36th European Club Cup 2021"]
[Site "Struga"]
[Date "2021.09.23"]
[Round "6.52"]
[White "Tadic, Stefan"]
[Black "Podlesnik, Bogdan"]
[Result "0-1"]
[ECO "B22"]
[WhiteElo "2339"]
[BlackElo "2327"]
[Annotator "NA"]
[PlyCount "86"]
[EventDate "2021.09.18"]
[EventType "team-tourn"]
[EventCountry "MKD"]
[SourceTitle "playchess.com"]
[Source "ChessBase"]
[SourceQuality "1"]
[TimeControl "40/5400+30:1800+30"]

1. e4 {[%emt 0:00:05]} c5 {[%emt 0:00:06]} 2. c3 {[%emt 0:00:21]} d5 {[%emt 0:
00:27]} 3. exd5 {[%emt 0:00:06]} Qxd5 {[%emt 0:00:08]} 4. d4 {[%emt 0:00:07]}
e6 {[%emt 0:00:06]} 5. Nf3 {[%emt 0:00:27]} Nc6 {[%emt 0:00:08]} 6. Na3 {
[%emt 0:01:12]} Qd8 {[%emt 0:02:07]} 7. Nc2 {[%emt 0:00:09]} Nf6 {[%emt 0:10:
51]} 8. Bd3 {[%emt 0:00:14]} Be7 {[%emt 0:02:31]} 9. O-O {[%emt 0:00:14]} O-O {
[%emt 0:00:28]} 10. Qe2 {[%emt 0:01:04]} b6 {[%emt 0:02:35]} 11. dxc5 {[%emt 0:
06:01]} bxc5 {[%emt 0:00:10]} 12. Bf4 {[%emt 0:04:46]} Nd5 {[%emt 0:02:34]} 13.
Bg3 {[%emt 0:00:48]} Bd6 {[%emt 0:08:40]} 14. Rad1 {[%emt 0:10:08]} Bxg3 {
[%emt 0:00:12]} 15. fxg3 {[%emt 0:17:25]} Qe7 {[%emt 0:22:44]} 16. c4 {[%emt 0:
17:26]} Nf6 {[%emt 0:04:50]} 17. g4 {[%emt 0:00:45]} Bb7 {[%emt 0:02:09]} 18.
g5 {[%emt 0:00:28]} Nh5 {[%emt 0:04:35]} 19. h4 {[%emt 0:19:22]} Ng3 {[%emt 0:
02:11]} 20. Qe3 {[%emt 0:00:43]} Nxf1 {[%emt 0:00:43]} 21. Rxf1 {[%emt 0:00:05]
} Rad8 {[%emt 0:02:01]} 22. Nh2 {[%emt 0:04:40]} Qd6 {[%emt 0:02:45]} 23. Be4 {
[%emt 0:08:01]} Nd4 {[%emt 0:01:42]} 24. Bxb7 {[%emt 0:01:05]} Nxc2 {[%emt 0:
00:39]} 25. Qf2 {[%emt 0:04:08]} Qd4 {[%emt 0:01:09]} 26. Nf3 {[%emt 0:01:04]}
Qxf2+ {[%emt 0:00:25]} 27. Rxf2 {[%emt 0:01:15]} Nd4 {[%emt 0:01:23]} 28. Ne5 {
[%emt 0:00:07]} Nf5 {[%emt 0:05:34]} 29. Nf3 {[%emt 0:00:31]} Nd6 {[%emt 0:02:
01]} 30. Bc6 {[%emt 0:01:11]} Rc8 {[%emt 0:04:50]} 31. Bb5 {[%emt 0:00:01]}
Nxb5 {[%emt 0:01:56]} 32. cxb5 {[%emt 0:00:04]} f6 {[%emt 0:00:13]} 33. gxf6 {
[%emt 0:01:36]} gxf6 {[%emt 0:01:28]} 34. g4 {[%emt 0:00:07]} h6 {[%emt 0:01:
06]} 35. Kf1 {[%emt 0:01:20]} Kg7 {[%emt 0:00:49]} 36. Ke2 {[%emt 0:00:15]} Rb8
{[%emt 0:00:39]} 37. a4 {[%emt 0:00:16]} a6 {[%emt 0:00:07]} 38. g5 {[%emt 0:
01:01]} axb5 {[%emt 0:02:06]} 39. gxf6+ {[%emt 0:00:16]} Rxf6 {[%emt 0:01:02]}
40. Rg2+ {[%emt 0:00:00]} Rg6 {[%emt 0:00:00]} 41. Rxg6+ {[%emt 0:01:08]} Kxg6
{[%emt 0:01:19]} 42. Ne5+ {[%emt 0:00:01]} Kh5 {[%emt 0:01:34]} 43. Nd7 {
[%emt 0:02:55]} Rd8 {[%emt 0:00:32]} 0-1

[Event "36th European Club Cup 2021"]
[Site "Struga"]
[Date "2021.09.23"]
[Round "6.53"]
[White "Zlatkov, Anton"]
[Black "Gotovusa, Goran"]
[Result "1/2-1/2"]
[ECO "C42"]
[WhiteElo "2132"]
[BlackElo "2161"]
[Annotator "NA"]
[PlyCount "92"]
[EventDate "2021.09.18"]
[EventType "team-tourn"]
[EventCountry "MKD"]
[SourceTitle "playchess.com"]
[Source "ChessBase"]
[SourceQuality "1"]
[TimeControl "40/5400+30:1800+30"]

1. e4 {[%emt 0:00:02]} e5 {[%emt 0:00:10]} 2. Nf3 {[%emt 0:00:06]} Nf6 {
[%emt 0:00:03]} 3. Nxe5 {[%emt 0:00:09]} d6 {[%emt 0:00:04]} 4. Nf3 {[%emt 0:
00:10]} Nxe4 {[%emt 0:00:08]} 5. Nc3 {[%emt 0:00:04]} Nf6 {[%emt 0:00:08]} 6.
d4 {[%emt 0:00:18]} Be7 {[%emt 0:00:20]} 7. Bd3 {[%emt 0:00:16]} O-O {[%emt 0:
00:43]} 8. h3 {[%emt 0:00:31]} c6 {[%emt 0:02:28]} 9. O-O {[%emt 0:00:33]} Na6
{[%emt 0:00:21]} 10. a3 {[%emt 0:01:19]} Nc7 {[%emt 0:00:54]} 11. Ne2 {[%emt 0:
04:55]} d5 {[%emt 0:06:17]} 12. Ng3 {[%emt 0:02:43]} Re8 {[%emt 0:01:16]} 13.
c3 {[%emt 0:04:29]} Bd6 {[%emt 0:04:46]} 14. Nf5 {[%emt 0:07:53]} Bxf5 {
[%emt 0:06:16]} 15. Bxf5 {[%emt 0:00:02]} g6 {[%emt 0:06:53]} 16. Bd3 {[%emt 0:
02:29]} Ne6 {[%emt 0:08:58]} 17. Ne5 {[%emt 0:13:51]} c5 {[%emt 0:03:30]} 18.
Nf3 {[%emt 0:13:02]} c4 {[%emt 0:08:32]} 19. Bc2 {[%emt 0:00:15]} Nd7 {[%emt 0:
19:23]} 20. g3 {[%emt 0:04:28]} Qc7 {[%emt 0:05:16]} 21. Kg2 {[%emt 0:02:25]}
Re7 {[%emt 0:06:48]} 22. Nh2 {[%emt 0:18:39]} f5 {[%emt 0:03:12]} 23. f4 {
[%emt 0:06:52]} Nf6 {[%emt 0:07:52]} 24. Nf3 {[%emt 0:00:11]} Ne4 {[%emt 0:01:
14]} 25. Bxe4 {[%emt 0:03:06]} fxe4 {[%emt 0:02:37]} 26. Ne5 {[%emt 0:00:08]}
Bxe5 {[%emt 0:00:11]} 27. fxe5 {[%emt 0:01:14]} Rf7 {[%emt 0:01:59]} 28. Bh6 {
[%emt 0:04:26]} Ng7 {[%emt 0:00:28]} 29. Bg5 {[%emt 0:09:03]} Raf8 {[%emt 0:00:
40]} 30. Qe2 {[%emt 0:00:11]} Rxf1 {[%emt 0:01:42]} 31. Rxf1 {[%emt 0:00:02]}
Rxf1 {[%emt 0:00:10]} 32. Qxf1 {[%emt 0:00:21]} Qf7 {[%emt 0:00:06]} 33. Bf6 {
[%emt 0:00:45]} Ne8 {[%emt 0:00:29]} 34. g4 {[%emt 0:01:03]} Nxf6 {[%emt 0:00:
20]} 35. exf6 {[%emt 0:00:11]} Qe6 {[%emt 0:00:30]} 36. Qf4 {[%emt 0:01:12]} e3
{[%emt 0:01:22]} 37. Kf1 {[%emt 0:00:23]} Kf7 {[%emt 0:00:10]} 38. Ke2 {
[%emt 0:00:29]} Qxf6 {[%emt 0:00:46]} 39. Qxf6+ {[%emt 0:00:41]} Kxf6 {[%emt 0:
00:02]} 40. Kxe3 {[%emt 0:00:00]} Kg5 {[%emt 0:00:00]} 41. Kf3 {[%emt 0:32:03]}
Kh4 {[%emt 0:33:56]} 42. Kg2 {[%emt 0:00:30]} h5 {[%emt 0:00:30]} 43. gxh5 Kxh5
44. Kg3 {[%emt 0:01:00]} g5 45. Kg2 {[%emt 0:00:30]} Kh4 {[%emt 0:01:30]} 46.
Kh2 g4 1/2-1/2

[Event "36th European Club Cup 2021"]
[Site "Struga"]
[Date "2021.09.23"]
[Round "6.54"]
[White "Gjorgjieski, Dejan"]
[Black "Andonovski, Ljubisa"]
[Result "0-1"]
[ECO "A37"]
[WhiteElo "2125"]
[BlackElo "2252"]
[Annotator "NA"]
[PlyCount "120"]
[EventDate "2021.09.18"]
[EventType "team-tourn"]
[EventCountry "MKD"]
[SourceTitle "playchess.com"]
[Source "ChessBase"]
[SourceQuality "1"]
[TimeControl "40/5400+30:1800+30"]

1. Nf3 {[%emt 0:00:05]} c5 {[%emt 0:02:28]} 2. c4 {[%emt 0:02:43]} Nc6 {
[%emt 0:04:30]} 3. Nc3 {[%emt 0:00:16]} g6 {[%emt 0:00:45]} 4. g3 {[%emt 0:00:
47]} Bg7 {[%emt 0:00:14]} 5. Bg2 {[%emt 0:00:06]} d6 {[%emt 0:00:17]} 6. d3 {
[%emt 0:00:17]} Rb8 {[%emt 0:00:27]} 7. O-O {[%emt 0:07:57]} a6 {[%emt 0:00:06]
} 8. a4 {[%emt 0:00:08]} Nf6 {[%emt 0:03:38]} 9. Bd2 {[%emt 0:05:04]} O-O {
[%emt 0:00:26]} 10. Ne1 {[%emt 0:04:15]} Bd7 {[%emt 0:01:28]} 11. Nc2 {[%emt 0:
02:00]} Qc8 {[%emt 0:05:29]} 12. Re1 {[%emt 0:02:28]} Bh3 {[%emt 0:00:12]} 13.
Bh1 {[%emt 0:00:20]} h5 {[%emt 0:02:05]} 14. Rb1 {[%emt 0:09:12]} Ne5 {[%emt 0:
22:05]} 15. Ne3 {[%emt 0:14:31]} Nc6 {[%emt 0:13:36]} 16. Ned5 {[%emt 0:05:11]}
Nxd5 {[%emt 0:04:36]} 17. Nxd5 {[%emt 0:01:26]} b5 {[%emt 0:01:15]} 18. axb5 {
[%emt 0:24:35]} axb5 {[%emt 0:00:12]} 19. cxb5 {[%emt 0:02:01]} Rxb5 {[%emt 0:
00:11]} 20. Qa4 {[%emt 0:00:30]} Qb8 {[%emt 0:00:20]} 21. Qh4 {[%emt 0:00:46]}
Be6 {[%emt 0:07:02]} 22. Nc3 {[%emt 0:05:37]} Rb4 {[%emt 0:01:26]} 23. Qg5 {
[%emt 0:05:06]} Bf6 {[%emt 0:16:31]} 24. Qe3 {[%emt 0:01:29]} Nd4 {[%emt 0:01:
15]} 25. Ne4 {[%emt 0:00:43]} Nf5 {[%emt 0:03:47]} 26. Nxf6+ {[%emt 0:01:16]}
exf6 {[%emt 0:00:07]} 27. Qf3 {[%emt 0:00:16]} Rxb2 {[%emt 0:00:09]} 28. Rxb2 {
[%emt 0:00:46]} Qxb2 {[%emt 0:00:04]} 29. Bf4 {[%emt 0:01:33]} Nd4 {[%emt 0:03:
17]} 30. Qe3 {[%emt 0:00:28]} Re8 {[%emt 0:00:20]} 31. Qd2 {[%emt 0:01:50]}
Qxd2 {[%emt 0:02:06]} 32. Bxd2 {[%emt 0:00:07]} Bf5 {[%emt 0:03:21]} 33. e4 {
[%emt 0:01:59]} Bg4 {[%emt 0:00:42]} 34. Bf4 {[%emt 0:00:33]} Ne2+ {[%emt 0:01:
39]} 35. Kg2 {[%emt 0:00:47]} Nxf4+ {[%emt 0:00:11]} 36. gxf4 {[%emt 0:00:03]}
Bd7 {[%emt 0:01:19]} 37. Rb1 {[%emt 0:00:24]} f5 {[%emt 0:00:24]} 38. Kg3 {
[%emt 0:01:01]} fxe4 {[%emt 0:00:46]} 39. Bxe4 {[%emt 0:00:40]} Be6 {[%emt 0:
01:14]} 40. Rb6 {[%emt 0:00:00]} d5 {[%emt 0:00:00]} 41. Bf3 {[%emt 0:01:32]}
Rc8 {[%emt 0:02:35]} 42. Rb3 {[%emt 0:15:10]} c4 {[%emt 0:02:17]} 43. dxc4 {
[%emt 0:02:28]} dxc4 {[%emt 0:00:02]} 44. Rc3 {[%emt 0:00:08]} Kf8 {[%emt 0:00:
54]} 45. Be2 {[%emt 0:00:50]} Ke7 {[%emt 0:00:09]} 46. f5 {[%emt 0:00:15]} gxf5
{[%emt 0:00:18]} 47. Bxh5 {[%emt 0:00:35]} Kd6 {[%emt 0:00:07]} 48. Kf4 {
[%emt 0:01:52]} Kc5 {[%emt 0:01:43]} 49. h4 {[%emt 0:03:42]} Kb4 {[%emt 0:00:
23]} 50. Rc1 {[%emt 0:00:46]} Rh8 {[%emt 0:07:09]} 51. Kg5 {[%emt 0:00:55]} f6+
{[%emt 0:00:14]} 52. Kxf6 {[%emt 0:01:13]} Rxh5 {[%emt 0:00:09]} 53. Kxe6 {
[%emt 0:00:10]} f4 {[%emt 0:00:11]} 54. Kf6 {[%emt 0:01:20]} f3 {[%emt 0:03:31]
} 55. Rh1 {[%emt 0:01:17]} c3 {[%emt 0:00:14]} 56. Kg6 {[%emt 0:00:04]} Rd5 {
[%emt 0:00:17]} 57. h5 {[%emt 0:00:54]} c2 {[%emt 0:00:07]} 58. h6 {[%emt 0:01:
00]} Rd1 {[%emt 0:00:20]} 59. Rh4+ {[%emt 0:00:11]} Kb3 {[%emt 0:00:55]} 60. h7
{[%emt 0:00:08]} Rd8 {[%emt 0:18:55]} 0-1